bitfinex/quotes_BTCUSD_20240717
["timestamp","ask_amount","ask_price","bid_price","bid_amount"]
[1721182748360,0.002,65715.0,65711.0,0.1446]
[1721182748564,0.15217,65716.0,65712.0,0.00304305]
[1721182748772,0.15217,65716.0,65711.0,0.296781]
[1721182749304,0.04965416,65722.0,65715.0,0.152171]
[1721182749305,0.15216,65720.0,65715.0,0.152171]
[1721182749477,0.152169,65717.0,65711.0,0.1446]
[1721182749657,0.152171,65716.0,65711.0,0.1446]
[1721182749858,0.15715271,65715.0,65711.0,0.1446]
[1721182750061,0.007,65715.0,65711.0,0.1446]
[1721182750264,0.152175,65714.0,65711.0,0.1446]
[1721182750640,0.007,65715.0,65711.0,0.1446]
[1721182750641,0.152179,65712.0,65711.0,0.1446]
[1721182750841,0.152182,65711.0,65707.0,0.0666]
[1721182751622,0.152187,65709.0,65707.0,0.14377479]
[1721182751961,0.30435,65714.0,65708.0,0.152187]
[1721182751962,0.152177,65713.0,65708.0,0.152187]
[1721182752144,0.30655874,65713.0,65708.0,0.152187]
[1721182752349,0.304359,65712.0,65707.0,0.0666]
[1721182752557,0.152187,65709.0,65707.0,0.0666]
[1721182753117,0.304359,65712.0,65707.0,0.0666]
[1721182753322,0.608752,65708.0,65707.0,0.001]
[1721182753522,0.91532174,65708.0,65707.0,0.001]
[1721182753910,0.152198,65704.0,65702.0,0.00304369]
[1721182754109,0.152194,65706.0,65703.0,0.00461528]
[1721182754310,0.152197,65705.0,65701.0,0.0603]
[1721182754547,0.152197,65705.0,65702.0,0.00461706]
[1721182755515,0.152192,65707.0,65702.0,0.00461706]
[1721182755728,0.152186,65709.0,65705.0,0.152195]
[1721182755930,0.15438174,65708.0,65704.0,0.152196]
[1721182756159,0.15438174,65708.0,65706.0,0.0046109]
[1721182756449,0.152184,65710.0,65705.0,0.15680668]
[1721182756589,0.152184,65710.0,65707.0,0.00460911]
[1721182756788,0.152184,65710.0,65706.0,0.1568029]
[1721182756988,0.152184,65710.0,65708.0,0.00460733]
[1721182757295,0.15218,65712.0,65707.0,0.00460911]
[1721182757497,0.152182,65711.0,65706.0,0.152192]
[1721182758147,0.152182,65711.0,65707.0,0.00460911]
[1721182758596,0.004,65710.0,65707.0,0.00460911]
[1721182758941,0.152182,65711.0,65707.0,0.00460911]
[1721182759306,0.157182,65711.0,65707.0,0.00460911]
[1721182759520,0.152182,65711.0,65707.0,0.00460911]
[1721182759932,0.002,65710.0,65707.0,0.15679911]
[1721182760560,0.002,65710.0,65709.0,0.98540479]
[1721182760731,0.002,65710.0,65709.0,0.99001197]
[1721182760913,0.002,65710.0,65709.0,1.42075171]
[1721182761154,0.002,65710.0,65709.0,1.29438397]
[1721182761359,0.002,65710.0,65709.0,1.42075132]
[1721182761758,0.005,65711.0,65710.0,0.760917]
[1721182762007,0.005,65711.0,65710.0,1.34355675]
[1721182762162,0.005,65711.0,65710.0,2.29792375]
[1721182762366,0.46304871,65730.0,65716.0,0.656508]
[1721182762566,0.46304871,65730.0,65718.0,0.152164]
[1721182762567,0.152154,65723.0,65718.0,0.152164]
[1721182762769,0.15438174,65723.0,65719.0,0.152162]
[1721182762975,0.15438174,65723.0,65719.0,0.15673511]
[1721182763429,0.15438174,65723.0,65720.0,0.15216]
[1721182763580,0.15438174,65723.0,65720.0,0.15691466]
[1721182765949,0.15438174,65723.0,65720.0,0.00475466]
[1721182766182,0.15492697,65722.0,65720.0,0.00775466]
[1721182766373,0.152156,65722.0,65720.0,0.003]
[1721182766575,0.152156,65722.0,65721.0,0.00475022]
[1721182767053,0.152158,65721.0,65720.0,0.003]
[1721182767254,0.91794271,65721.0,65720.0,0.003]
[1721182767478,1.35798774,65721.0,65720.0,0.007752]
[1721182767691,1.35798774,65721.0,65720.0,0.003]
[1721182767692,1.41728496,65721.0,65720.0,0.003]
[1721182768107,0.152179,65712.0,65707.0,0.15219]
[1721182768322,0.15438174,65711.0,65707.0,0.15219]
[1721182768496,0.15438174,65711.0,65708.0,0.00477341]
[1721182769683,0.15538174,65711.0,65708.0,0.00777341]
[1721182769898,0.001,65711.0,65709.0,0.152184]
[1721182770333,0.001,65711.0,65710.0,0.00476984]
[1721182770986,0.001,65711.0,65710.0,0.15695284]
[1721182771213,0.91628874,65711.0,65710.0,0.00476984]
[1721182771481,0.91628874,65711.0,65702.0,0.000924]
[1721182771482,0.152197,65705.0,65702.0,0.000924]
[1721182771726,0.30657874,65705.0,65702.0,0.000924]
[1721182771958,0.30657874,65705.0,65703.0,0.00477665]
[1721182772460,0.152197,65704.0,65703.0,0.00477665]
[1721182773447,0.37197874,65704.0,65703.0,0.00477665]
[1721182773851,0.67637374,65704.0,65703.0,0.00477665]
[1721182774051,0.98076874,65704.0,65703.0,0.00477665]
[1721182774345,0.4566,65703.0,65702.0,0.000924]
[1721182774599,1.32436587,65703.0,65702.0,0.000924]
[1721182774783,1.32436552,65703.0,65702.0,0.000924]
[1721182775003,1.27916203,65703.0,65702.0,0.000924]
[1721182775433,1.32435436,65703.0,65702.0,0.000924]
[1721182775654,1.32435436,65703.0,65702.0,0.001924]
[1721182775853,1.32435143,65703.0,65702.0,0.001924]
[1721182776085,1.27916203,65703.0,65702.0,0.000924]
[1721182776293,1.33134813,65703.0,65702.0,0.000924]
[1721182776673,1.28616203,65703.0,65702.0,0.000924]
[1721182776864,1.37656644,65703.0,65702.0,0.000924]
[1721182777419,1.28616203,65703.0,65702.0,0.000924]
[1721182778342,1.3539143,65703.0,65702.0,0.000924]
[1721182778596,1.35391283,65703.0,65702.0,0.000924]
[1721182779056,1.22678174,65703.0,65702.0,0.000924]
[1721182779255,1.35396026,65703.0,65702.0,0.000924]
[1721182779385,1.28620779,65703.0,65702.0,0.000924]
[1721182779595,1.33136604,65703.0,65702.0,0.000924]
[1721182779797,1.22678174,65703.0,65702.0,0.000924]
[1721182782187,1.27194108,65703.0,65702.0,0.000924]
[1721182782550,1.39949743,65703.0,65702.0,0.000924]
[1721182782763,1.70389743,65703.0,65702.0,0.000924]
[1721182783347,1.61357875,65703.0,65702.0,0.000924]
[1721182783786,1.55418174,65703.0,65702.0,0.000924]
[1721182784010,1.59933625,65703.0,65702.0,0.000924]
[1721182784419,1.55418174,65703.0,65702.0,0.000924]
[1721182785135,1.59933122,65703.0,65702.0,0.000924]
[1721182785462,1.59927813,65703.0,65702.0,0.000924]
[1721182785625,1.29487813,65703.0,65702.0,0.000924]
[1721182786011,1.29487317,65703.0,65702.0,0.000924]
[1721182786216,1.24972865,65703.0,65702.0,0.000924]
[1721182786521,1.29486826,65703.0,65702.0,0.000924]
[1721182787744,1.29486304,65703.0,65702.0,0.000924]
[1721182789057,1.24972865,65703.0,65702.0,0.000924]
[1721182789761,1.27652957,65703.0,65702.0,0.000924]
[1721182790693,0.64472957,65703.0,65702.0,0.000924]
[1721182790945,0.16138174,65703.0,65702.0,0.000924]
[1721182791185,0.34040152,65703.0,65702.0,0.00577899]
[1721182791657,0.34040152,65703.0,65702.0,0.000924]
[1721182792122,0.33340152,65703.0,65702.0,0.000924]
[1721182792330,0.33840152,65703.0,65702.0,0.000924]
[1721182792766,0.33340152,65703.0,65702.0,0.000924]
[1721182793161,0.33740152,65703.0,65702.0,0.000924]
[1721182793331,0.18301978,65703.0,65702.0,0.00577899]
[1721182793527,0.18601978,65703.0,65702.0,0.00577899]
[1721182793734,0.03381978,65703.0,65702.0,0.00577899]
[1721182793940,0.007,65703.0,65702.0,0.00577899]
[1721182794349,0.0338601,65703.0,65702.0,0.00577899]
[1721182794793,0.0268601,65703.0,65702.0,0.00577899]
[1721182795268,0.0308601,65703.0,65702.0,0.00577899]
[1721182795498,0.0268601,65703.0,65702.0,0.00577899]
[1721182795982,0.0288601,65703.0,65702.0,0.00577899]
[1721182796213,0.0268601,65703.0,65702.0,0.00577899]
[1721182796432,0.004,65703.0,65702.0,0.00577899]
[1721182796697,0.0308601,65703.0,65702.0,0.00577899]
[1721182798044,0.0328601,65703.0,65702.0,0.00577899]
[1721182798266,0.0268601,65703.0,65702.0,0.00577899]
[1721182798672,0.0308601,65703.0,65702.0,0.00577899]
[1721182799093,0.0328601,65703.0,65702.0,0.00577899]
[1721182799474,0.0268601,65703.0,65702.0,0.00577899]
[1721182799671,0.0268601,65704.0,65702.0,0.00577899]
[1721182799880,0.004,65703.0,65702.0,0.00577899]
[1721182800071,0.0308601,65703.0,65702.0,0.00577899]
[1721182800278,0.004,65703.0,65702.0,0.00577899]
[1721182800440,0.03074341,65703.0,65702.0,0.00577899]
[1721182800639,0.18294341,65703.0,65702.0,0.00577899]
[1721182801076,0.94212515,65703.0,65702.0,0.00577899]
[1721182801454,0.63972515,65703.0,65702.0,0.000924]
[1721182802099,0.64372515,65703.0,65702.0,0.00575674]
[1721182802266,0.63772515,65703.0,65702.0,0.000924]
[1721182802635,0.63775428,65703.0,65702.0,0.000924]
[1721182802838,0.63775428,65703.0,65702.0,0.00575674]
[1721182802839,0.03077268,65703.0,65702.0,0.00575674]
[1721182803011,0.03077268,65703.0,65702.0,0.000924]
[1721182803214,0.03077268,65703.0,65702.0,0.00575674]
[1721182803585,0.18381268,65703.0,65702.0,0.00575674]
[1721182804028,0.18381268,65703.0,65702.0,0.000924]
[1721182804029,0.48821268,65703.0,65702.0,0.000924]
[1721182804247,0.94699442,65703.0,65702.0,0.000924]
[1721182804451,0.94299442,65703.0,65702.0,0.000924]
[1721182804597,0.94699442,65703.0,65702.0,0.000924]
[1721182805017,0.94299442,65703.0,65702.0,0.000924]
[1721182805218,1.00535773,65703.0,65702.0,0.000924]
[1721182805636,1.00544565,65703.0,65702.0,0.000924]
[1721182805842,1.00944565,65703.0,65702.0,0.000924]
[1721182806288,0.64568234,65703.0,65702.0,0.000924]
[1721182806459,0.64568234,65703.0,65702.0,0.136424]
[1721182806677,0.0347006,65703.0,65702.0,0.136424]
[1721182807029,0.0347006,65703.0,65702.0,0.90228107]
[1721182807686,0.0347006,65703.0,65702.0,1.33306918]
[1721182807887,0.00084,65703.0,65702.0,1.33306918]
[1721182808160,0.00484,65703.0,65702.0,1.33306918]
[1721182808728,0.04971799,65716.0,65715.0,0.152172]
[1721182808959,0.0764628,65716.0,65715.0,0.597416]
[1721182809281,0.02674481,65716.0,65715.0,0.90657553]
[1721182809485,0.152154,65723.0,65718.0,0.152164]
[1721182809486,0.02669901,65722.0,65718.0,0.152164]
[1721182809709,0.02670209,65721.0,65717.0,0.152166]
[1721182809889,0.02670209,65721.0,65719.0,0.00480354]
[1721182810095,0.02670209,65721.0,65718.0,0.00480532]
[1721182810305,0.02670209,65721.0,65720.0,0.00480176]
[1721182810443,0.02670209,65721.0,65719.0,0.00480354]
[1721182810651,0.02670209,65721.0,65720.0,0.00480176]
[1721182810849,0.71835783,65721.0,65720.0,0.00480176]
[1721182811052,0.71835783,65721.0,65715.0,0.001]
[1721182811053,0.159169,65716.0,65715.0,0.001]
[1721182811256,0.159169,65716.0,65703.0,0.1466]
[1721182811257,0.152188,65708.0,65703.0,0.1466]
[1721182811460,0.02670209,65707.0,65704.0,0.152197]
[1721182811664,0.46572074,65716.0,65704.0,0.00482281]
[1721182811665,0.304355,65713.0,65704.0,0.00482281]
[1721182811886,0.152183,65710.0,65704.0,0.15701781]
[1721182812129,0.007,65716.0,65705.0,0.0030435]
[1721182812130,0.02669535,65709.0,65705.0,0.0030435]
[1721182812328,0.005,65716.0,65705.0,0.30743328]
[1721182812611,0.00277097,65713.0,65706.0,0.00481924]
[1721182812769,0.18096241,65715.0,65706.0,0.15701024]
[1721182812770,0.152181,65711.0,65706.0,0.15701024]
[1721182812969,0.02658067,65710.0,65706.0,0.00481924]
[1721182813124,0.02658067,65709.0,65707.0,0.15219]
[1721182813331,0.02658067,65708.0,65707.0,0.15219]
[1721182813907,0.02658067,65708.0,65707.0,0.15701402]
[1721182814230,0.02658067,65712.0,65707.0,0.15701402]
[1721182814529,0.02658067,65711.0,65707.0,0.15701402]
[1721182814732,0.02658067,65710.0,65707.0,0.15701402]
[1721182814989,0.02668681,65709.0,65707.0,0.15701402]
[1721182815241,0.15438174,65715.0,65708.0,0.304376]
[1721182815445,0.178858,65714.0,65709.0,0.152184]
[1721182815596,0.026683,65713.0,65710.0,0.152183]
[1721182815797,0.026683,65713.0,65709.0,0.00481824]
[1721182815798,0.026683,65712.0,65711.0,0.30917667]
[1721182816004,0.02679518,65714.0,65713.0,0.152176]
[1721182816179,0.02679518,65714.0,65713.0,0.1569871]
[1721182816367,0.02679518,65717.0,65713.0,0.1569871]
[1721182816569,0.02679518,65716.0,65713.0,0.1569871]
[1721182816795,0.152165,65718.0,65713.0,0.1569871]
[1721182816796,0.02679518,65715.0,65713.0,0.1569871]
[1721182817002,0.02679518,65714.0,65713.0,0.1569871]
[1721182817850,0.02679518,65717.0,65713.0,0.1569871]
[1721182818057,0.18116537,65716.0,65713.0,0.0048111]
[1721182818264,0.155174,65714.0,65713.0,0.0048111]
[1721182818506,0.02978363,65714.0,65713.0,0.152176]
[1721182818711,0.02678363,65714.0,65713.0,0.1569871]
[1721182818912,0.02978363,65714.0,65713.0,0.1569871]
[1721182819527,0.03278363,65714.0,65713.0,0.1569871]
[1721182819726,0.02678363,65714.0,65713.0,0.5379401]
[1721182819935,0.152161,65720.0,65714.0,0.152173]
[1721182820139,0.02686655,65719.0,65718.0,0.152165]
[1721182820363,0.02686655,65719.0,65718.0,0.30931988]
[1721182820562,0.02686655,65719.0,65718.0,0.46148388]
[1721182820769,0.02686655,65723.0,65718.0,0.46148388]
[1721182821063,0.152152,65724.0,65719.0,0.152162]
[1721182821267,0.02683934,65723.0,65719.0,0.152162]
[1721182821393,0.152152,65724.0,65720.0,0.00498631]
[1721182821595,0.02683993,65723.0,65720.0,0.00498631]
[1721182822033,0.0491199,65727.0,65724.0,0.0774]
[1721182822233,0.02681292,65726.0,65724.0,0.0774]
[1721182822434,0.02681292,65726.0,65725.0,0.00497117]
[1721182822780,0.02681094,65727.0,65725.0,0.00497117]
[1721182822955,0.34946894,65734.0,65725.0,0.46141817]
[1721182822956,0.02681028,65726.0,65725.0,0.46141817]
[1721182823191,0.152133,65732.0,65727.0,0.152144]
[1721182823396,0.02675636,65731.0,65727.0,0.152144]
[1721182823604,0.02675636,65731.0,65725.0,0.30926917]
[1721182823605,0.02675636,65731.0,65730.0,0.53358679]
[1721182823816,0.02675646,65735.0,65731.0,0.0774]
[1721182824026,0.0499281,65738.0,65737.0,0.456363]
[1721182824229,0.02687167,65738.0,65737.0,0.456363]
[1721182824407,0.17882986,65752.0,65742.0,0.152108]
[1721182824408,0.02687056,65746.0,65742.0,0.152108]
[1721182824655,0.18125181,65745.0,65743.0,0.00492595]
[1721182824859,0.02687007,65744.0,65743.0,0.00492595]
[1721182825061,0.48318607,65744.0,65738.0,0.152118]
[1721182825268,0.48318607,65744.0,65737.0,0.0622]
[1721182825269,0.02687007,65743.0,65742.0,1.022747]
[1721182825476,0.04915833,65751.0,65750.0,0.152091]
[1721182825686,0.07591513,65751.0,65750.0,0.152091]
[1721182825900,0.304146,65758.0,65750.0,0.2367108]
[1721182826103,0.02675826,65754.0,65750.0,0.2367108]
[1721182826309,0.152088,65751.0,65750.0,0.0049198]
[1721182826512,0.333228,65751.0,65750.0,0.0049198]
[1721182826659,0.304182,65750.0,65743.0,0.152106]
[1721182826870,0.18114,65749.0,65743.0,0.152106]
[1721182827085,0.15438174,65749.0,65744.0,0.00491774]
[1721182827287,0.02657789,65748.0,65744.0,0.00491774]
[1721182827988,0.17867389,65748.0,65744.0,0.00491774]
[1721182828191,0.17867389,65748.0,65742.0,0.1429]
[1721182828192,0.02657789,65747.0,65743.0,0.001]
[1721182828401,0.152096,65748.0,65743.0,0.001]
[1721182828599,0.30647574,65749.0,65744.0,0.15902174]
[1721182828805,0.17867268,65748.0,65744.0,0.00691774]
[1721182828967,0.304175,65752.0,65744.0,0.00691774]
[1721182829171,0.152091,65750.0,65745.0,0.1521]
[1721182829381,0.152091,65750.0,65746.0,0.00490899]
[1721182830700,0.152094,65749.0,65746.0,0.00490899]
[1721182831101,0.30647274,65751.0,65745.0,0.152102]
[1721182831444,0.30647074,65751.0,65746.0,0.15700899]
[1721182831654,0.00084,65755.0,65749.0,0.304186]
[1721182831853,0.00084,65755.0,65752.0,0.152084]
[1721182832124,0.00084,65755.0,65754.0,0.152082]
[1721182832533,0.00084,65755.0,65754.0,0.15849932]
[1721182832740,0.00084,65755.0,65754.0,0.46266332]
[1721182833085,0.00084,65755.0,65754.0,0.76682732]
[1721182833285,0.00684,65755.0,65754.0,0.76782732]
[1721182834495,0.00684,65755.0,65754.0,0.22349932]
[1721182835406,0.00084,65755.0,65754.0,0.52666332]
[1721182835606,0.00084,65755.0,65754.0,0.53166332]
[1721182836417,0.00084,65755.0,65754.0,0.22749932]
[1721182836989,0.00084,65755.0,65754.0,0.16349932]
[1721182837191,0.00084,65755.0,65754.0,0.01141732]
[1721182837495,0.00084,65755.0,65754.0,0.16349932]
[1721182838492,0.00084,65755.0,65754.0,0.46766332]
[1721182839926,0.00084,65755.0,65754.0,0.01141732]
[1721182839927,0.06244,65755.0,65754.0,0.01141732]
[1721182840202,0.00084,65755.0,65754.0,0.01141732]
[1721182841410,0.457078,65755.0,65754.0,0.01141732]
[1721182841626,0.761237,65755.0,65754.0,0.01141732]
[1721182841860,0.761237,65755.0,65754.0,0.005]
[1721182841861,0.457078,65755.0,65754.0,0.005]
[1721182842505,0.152093,65749.0,65745.0,0.0828]
[1721182842737,0.15209,65751.0,65746.0,0.1521]
[1721182842943,0.767237,65755.0,65754.0,0.001]
[1721182843430,0.767237,65755.0,65754.0,0.002]
[1721182843665,0.772237,65755.0,65754.0,0.002]
[1721182844120,0.92661874,65755.0,65754.0,0.002]
[1721182844291,0.92661874,65755.0,65754.0,0.001]
[1721182844292,1.23077774,65755.0,65754.0,0.001]
[1721182844519,0.152099,65747.0,65741.0,0.21571]
[1721182844721,0.152099,65747.0,65742.0,0.12630824]
[1721182844969,0.152099,65747.0,65742.0,0.00722805]
[1721182845190,0.1521,65746.0,65742.0,0.00722805]
[1721182845365,0.1521,65746.0,65743.0,0.12630654]
[1721182845569,0.152098,65747.0,65742.0,0.15933705]
[1721182845756,0.152098,65747.0,65744.0,0.00722527]
[1721182846004,0.304191,65748.0,65743.0,0.00722666]
[1721182846197,0.304191,65748.0,65739.0,0.8428]
[1721182846198,0.760502,65746.0,65745.0,0.00721944]
[1721182846411,0.152114,65740.0,65739.0,0.76]
[1721182846780,0.152113,65741.0,65739.0,0.76]
[1721182846989,0.152112,65741.0,65739.0,0.76]
[1721182847431,0.152114,65740.0,65739.0,0.76]
[1721182847958,0.001,65740.0,65739.0,0.765]
[1721182848118,0.001,65740.0,65739.0,0.89131837]
[1721182848887,0.152114,65740.0,65739.0,0.76]
[1721182849113,0.152114,65740.0,65739.0,0.88632128]
[1721182849327,0.91495174,65740.0,65739.0,0.385]
[1721182849540,0.152124,65736.0,65732.0,0.07717479]
[1721182849793,0.152124,65736.0,65733.0,0.12632397]
[1721182849999,0.152124,65736.0,65734.0,0.12632397]
[1721182850249,0.152124,65736.0,65735.0,0.12632397]
[1721182850425,0.760618,65736.0,65735.0,0.12632397]
[1721182850904,0.152132,65732.0,65731.0,0.38]
[1721182851101,0.152132,65732.0,65731.0,0.50633555]
[1721182851931,0.15213,65733.0,65731.0,0.50633555]
[1721182852134,0.15213,65733.0,65732.0,0.12633555]
[1721182852331,0.15213,65733.0,65732.0,0.12633557]
[1721182852740,0.17870233,65733.0,65731.0,0.38]
[1721182852934,0.15213,65733.0,65731.0,0.38]
[1721182853154,0.0266586,65732.0,65731.0,0.384]
[1721182853958,0.1787906,65732.0,65731.0,0.38]
[1721182854430,0.0266586,65732.0,65731.0,0.532135]
[1721182854586,0.152114,65740.0,65735.0,0.152124]
[1721182854783,0.152104,65745.0,65740.0,0.152112]
[1721182854983,0.02660213,65744.0,65741.0,0.00304192]
[1721182855183,0.02660213,65743.0,65741.0,0.00304192]
[1721182855393,0.152105,65744.0,65739.0,0.152116]
[1721182855394,0.02660251,65742.0,65739.0,0.152116]
[1721182855591,0.304182,65751.0,65741.0,0.304223]
[1721182855793,0.18098436,65750.0,65742.0,0.14534172]
[1721182855991,0.152097,65748.0,65743.0,0.152107]
[1721182856234,0.011,65745.0,65744.0,0.45935671]
[1721182856411,0.011,65745.0,65744.0,0.46356007]
[1721182856609,0.011,65745.0,65744.0,0.76777007]
[1721182857038,0.152084,65753.0,65748.0,0.152094]
[1721182857246,0.02659482,65752.0,65748.0,0.152094]
[1721182857413,0.02659482,65752.0,65749.0,0.00665015]
[1721182858370,0.02654375,65751.0,65749.0,0.00665015]
[1721182858647,0.02654394,65750.0,65749.0,0.00665015]
[1721182858854,0.00084,65755.0,65750.0,0.304179]
[1721182859055,0.02654817,65754.0,65753.0,0.152084]
[1721182859253,0.02654817,65754.0,65753.0,0.229884]
[1721182859411,0.00084,65755.0,65753.0,0.00664103]
[1721182859743,0.02654884,65754.0,65753.0,0.00664103]
[1721182859943,0.152084,65753.0,65748.0,0.229895]
[1721182860093,0.02654884,65752.0,65748.0,0.229895]
[1721182861021,0.15438174,65751.0,65740.0,0.0778]
[1721182861258,0.15438174,65751.0,65738.0,0.42420229]
[1721182861259,0.02928187,65750.0,65738.0,0.38]
[1721182861461,0.304208,65745.0,65738.0,0.38]
[1721182861665,0.304215,65743.0,65738.0,0.38]
[1721182861874,0.304225,65741.0,65738.0,0.38]
[1721182862072,0.152115,65740.0,65738.0,0.38]
[1721182862280,0.152116,65739.0,65738.0,0.38]
[1721182862674,0.152116,65739.0,65738.0,0.386]
[1721182863020,0.152116,65739.0,65738.0,0.38]
[1721182863223,0.152116,65739.0,65738.0,0.385]
[1721182863791,0.456349,65739.0,65738.0,0.385]
[1721182863965,0.48283293,65739.0,65738.0,0.385]
[1721182864159,0.48283293,65739.0,65738.0,0.38]
[1721182864574,0.48283293,65739.0,65731.0,0.38]
[1721182864575,0.456397,65732.0,65731.0,0.38]
[1721182864791,0.78714593,65732.0,65731.0,0.38]
[1721182865203,0.48288093,65732.0,65731.0,0.38]
[1721182866259,0.48388093,65732.0,65731.0,0.386]
[1721182866492,0.48388093,65732.0,65731.0,0.39267918]
[1721182867076,0.48383655,65732.0,65731.0,0.39267918]
[1721182867828,0.17957155,65732.0,65731.0,0.39267918]
[1721182868233,0.17957155,65732.0,65731.0,0.39360318]
[1721182868865,1.24674829,65732.0,65731.0,0.01360318]
[1721182869276,1.24674829,65732.0,65731.0,0.006924]
[1721182870123,1.24674829,65732.0,65731.0,0.00667]
[1721182870283,1.22030874,65732.0,65731.0,0.00667]
[1721182870467,1.24669934,65732.0,65731.0,0.00667]
[1721182873443,1.24666397,65732.0,65731.0,0.00667]
[1721182873641,0.94239897,65732.0,65731.0,0.00667]
[1721182874040,0.48375223,65732.0,65731.0,0.00667]
[1721182874400,0.17948723,65732.0,65731.0,0.00667]
[1721182874663,0.78801723,65732.0,65731.0,0.01335679]
[1721182874833,0.78801723,65732.0,65731.0,0.00667]
[1721182876410,1.24666397,65732.0,65731.0,0.00667]
[1721182876581,0.48375223,65732.0,65731.0,0.00667]
[1721182876903,0.78801723,65732.0,65731.0,0.00667]
[1721182877108,1.24666397,65732.0,65731.0,0.00667]
[1721182879669,1.24665847,65732.0,65731.0,0.00667]
[1721182880572,1.24565847,65732.0,65731.0,0.000924]
[1721182882452,1.24665847,65732.0,65731.0,0.004924]
[1721182882648,1.22030874,65732.0,65731.0,0.004924]
[1721182882952,1.24675808,65732.0,65731.0,0.004924]
[1721182883467,1.44902414,65732.0,65731.0,0.004924]
[1721182884097,1.49206138,65732.0,65731.0,0.004924]
[1721182884300,1.81932638,65732.0,65731.0,0.004924]
[1721182884517,2.03623357,65732.0,65731.0,0.004924]
[1721182884717,1.99300327,65732.0,65731.0,0.004924]
[1721182885811,1.99348195,65732.0,65731.0,0.004924]
[1721182886195,1.8998398,65732.0,65731.0,0.004924]
[1721182886399,1.94353842,65732.0,65731.0,0.004924]
[1721182886596,1.93853842,65732.0,65731.0,0.004924]
[1721182886839,2.02886158,65732.0,65731.0,0.004924]
[1721182887239,1.8448398,65732.0,65731.0,0.004924]
[1721182887442,2.02879517,65732.0,65731.0,0.004924]
[1721182887677,1.93847699,65732.0,65731.0,0.004924]
[1721182887876,1.98859184,65732.0,65731.0,0.004924]
[1721182888623,2.07891002,65732.0,65731.0,0.004924]
[1721182888977,1.9643585,65732.0,65731.0,0.004924]
[1721182889200,1.98865696,65732.0,65731.0,0.004924]
[1721182889401,2.0563808,65732.0,65731.0,0.004924]
[1721182889764,1.98865696,65732.0,65731.0,0.004924]
[1721182889960,2.39727153,65732.0,65731.0,0.004924]
[1721182890239,2.66457153,65732.0,65731.0,0.000924]
[1721182890364,2.51080411,65732.0,65731.0,0.000924]
[1721182890564,2.63766339,65732.0,65731.0,0.000924]
[1721182890824,2.52461015,65732.0,65731.0,0.000924]
[1721182891988,2.51061015,65732.0,65731.0,0.000924]
[1721182892232,2.42521084,65732.0,65731.0,0.000924]
[1721182892405,2.56291943,65732.0,65731.0,0.000924]
[1721182892642,2.4500732,65732.0,65731.0,0.000924]
[1721182892837,2.2317732,65732.0,65731.0,0.000924]
[1721182893255,2.20691084,65732.0,65731.0,0.000924]
[1721182893519,2.39216067,65732.0,65731.0,0.000924]
[1721182894392,2.46775535,65732.0,65731.0,0.000924]
[1721182894739,2.40006067,65732.0,65731.0,0.000924]
[1721182895151,2.45006067,65732.0,65731.0,0.000924]
[1721182895343,2.14579567,65732.0,65731.0,0.000924]
[1721182895543,2.14611983,65732.0,65731.0,0.000924]
[1721182895748,2.21381279,65732.0,65731.0,0.000924]
[1721182896838,2.09611983,65732.0,65731.0,0.000924]
[1721182897154,1.95321983,65732.0,65731.0,0.000924]
[1721182897519,1.62595483,65732.0,65731.0,0.000924]
[1721182897864,1.38248084,65732.0,65731.0,0.000924]
[1721182898286,0.67395084,65732.0,65731.0,0.000924]
[1721182898432,0.014,65732.0,65731.0,0.000924]
[1721182898635,0.152132,65732.0,65731.0,0.000924]
[1721182898845,0.152132,65732.0,65731.0,0.00761435]
[1721182899062,0.014,65732.0,65731.0,0.079124]
[1721182899271,0.014,65732.0,65731.0,0.601929]
[1721182899467,0.152116,65740.0,65735.0,0.218524]
[1721182899684,0.152117,65739.0,65736.0,0.0066779]
[1721182900973,0.15438174,65740.0,65736.0,0.0066779]
[1721182901190,0.627909,65743.0,65738.0,0.0811]
[1721182901415,0.15211,65742.0,65738.0,0.0811]
[1721182901635,0.15211,65742.0,65739.0,0.00667426]
[1721182902284,0.15211,65742.0,65735.0,0.0664]
[1721182902285,0.15438174,65741.0,65735.0,0.0664]
[1721182902502,0.76064,65734.0,65733.0,0.0819]
[1721182902747,0.152132,65732.0,65731.0,0.000924]
[1721182902975,0.91504374,65732.0,65731.0,0.000924]
[1721182903194,1.27861982,65732.0,65731.0,0.00760149]
[1721182903415,1.21930874,65732.0,65731.0,0.000924]
[1721182903644,1.58288521,65732.0,65731.0,0.000924]
[1721182903866,1.77128521,65732.0,65731.0,0.000924]
[1721182904345,1.79604867,65732.0,65731.0,0.000924]
[1721182904544,1.87464867,65732.0,65731.0,0.000924]
[1721182904922,1.92464867,65732.0,65731.0,0.000924]
[1721182905126,2.0149639,65732.0,65731.0,0.001924]
[1721182905328,2.03754271,65732.0,65731.0,0.001924]
[1721182905733,2.05154271,65732.0,65731.0,0.001924]
[1721182906292,2.00154271,65732.0,65731.0,0.001924]
[1721182907679,1.88864867,65732.0,65731.0,0.001924]
[1721182907880,1.88908173,65732.0,65731.0,0.001924]
[1721182908332,1.93908173,65732.0,65731.0,0.001924]
[1721182909066,1.88908173,65732.0,65731.0,0.001924]
[1721182909907,1.93908173,65732.0,65731.0,0.001924]
[1721182910067,1.88908173,65732.0,65731.0,0.001924]
[1721182910500,1.93908173,65732.0,65731.0,0.001924]
[1721182910717,1.88908173,65732.0,65731.0,0.001924]
[1721182911106,1.88890304,65732.0,65731.0,0.001924]
[1721182911507,1.88740304,65732.0,65731.0,0.001924]
[1721182912845,1.43913804,65732.0,65731.0,0.001924]
[1721182913278,1.48913804,65732.0,65731.0,0.001924]
[1721182913495,1.85540304,65732.0,65731.0,0.001924]
[1721182914460,1.85465574,65732.0,65731.0,0.001924]
[1721182915262,1.93595574,65732.0,65731.0,0.001924]
[1721182917298,1.91168521,65732.0,65731.0,0.001924]
[1721182917490,1.93588112,65732.0,65731.0,0.001924]
[1721182920396,1.79258112,65732.0,65731.0,0.001924]
[1721182920604,1.7926759,65732.0,65731.0,0.001924]
[1721182922908,1.79283976,65732.0,65731.0,0.001924]
[1721182926064,1.79242684,65732.0,65731.0,0.001924]